[Event "Titled Tuesday Blitz March 01 Early 2022"]
[White "Aldokhin, Ivan"]
[Black "Abdyzhapar, Asylbek"]
[WhiteFideId "24115720"]
[BlackFideId "13800337"]
[WhiteElo "2231"]
[BlackElo "2331"]
[Result "0-1"]
[Round "03"]
[TimeControl "180+1"]
[Date "2022.03.01"]
[WhiteClock "0:00:02"]
[BlackClock "0:01:04"]

1. e4 {[%clk 0:03:00]}  c6 {[%clk 0:03:00]} 2. Nc3 {[%clk 0:03:00]}  d5 {[%clk 0:03:00]} 3. Nf3 {[%clk 0:03:00]}  Nf6 {[%clk 0:03:00]} 4. e5 {[%clk 0:02:59]}  Ne4 {[%clk 0:03:00]} 5. Ne2 {[%clk 0:02:59]}  Qb6 {[%clk 0:02:59]} 6. d4 {[%clk 0:02:52]}  e6 {[%clk 0:02:59]} 7. Ng3 {[%clk 0:02:39]}  c5 {[%clk 0:02:58]} 8. Bd3 {[%clk 0:02:08]}  cxd4 {[%clk 0:02:57]} 9. Nxe4 {[%clk 0:02:03]}  dxe4 {[%clk 0:02:57]} 10. Bxe4 {[%clk 0:02:03]}  Nc6 {[%clk 0:02:57]} 11. O-O {[%clk 0:01:47]}  Bd7 {[%clk 0:02:56]} 12. Bg5 {[%clk 0:01:20]}  h6 {[%clk 0:02:50]} 13. Bh4 {[%clk 0:01:19]}  Bc5 {[%clk 0:02:49]} 14. a3 {[%clk 0:01:16]}  Qc7 {[%clk 0:02:40]} 15. b4 {[%clk 0:01:15]}  Bb6 {[%clk 0:02:40]} 16. Bg3 {[%clk 0:01:11]}  Rd8 {[%clk 0:02:38]} 17. Qe2 {[%clk 0:01:10]}  O-O {[%clk 0:02:36]} 18. Bd3 {[%clk 0:01:05]}  Ne7 {[%clk 0:02:35]} 19. Nh4 {[%clk 0:01:00]}  Bc6 {[%clk 0:02:32]} 20. Bf4 {[%clk 0:00:54]}  Ng6 {[%clk 0:02:14]} 21. Nxg6 {[%clk 0:00:34]}  fxg6 {[%clk 0:02:13]} 22. Bg3 {[%clk 0:00:34]}  g5 {[%clk 0:02:11]} 23. a4 {[%clk 0:00:33]}  a6 {[%clk 0:02:10]} 24. b5 {[%clk 0:00:30]}  axb5 {[%clk 0:02:09]} 25. axb5 {[%clk 0:00:31]}  Bd5 {[%clk 0:02:10]} 26. Qg4 {[%clk 0:00:29]}  Qf7 {[%clk 0:02:06]} 27. f4 {[%clk 0:00:27]}  Qe7 {[%clk 0:01:50]} 28. Rae1 {[%clk 0:00:19]}  Rf7 {[%clk 0:01:45]} 29. f5 {[%clk 0:00:19]}  Rdf8 {[%clk 0:01:42]} 30. f6 {[%clk 0:00:12]}  gxf6 {[%clk 0:01:42]} 31. exf6 {[%clk 0:00:11]}  Rxf6 {[%clk 0:01:42]} 32. Qh5 {[%clk 0:00:10]}  Rxf1+ {[%clk 0:01:41]} 33. Rxf1 {[%clk 0:00:11]}  Rxf1+ {[%clk 0:01:40]} 34. Kxf1 {[%clk 0:00:12]}  Qf7+ {[%clk 0:01:40]} 35. Qxf7+ {[%clk 0:00:11]}  Kxf7 {[%clk 0:01:40]} 36. Be5 {[%clk 0:00:12]}  Bc5 {[%clk 0:01:32]} 37. Kf2 {[%clk 0:00:12]}  b6 {[%clk 0:01:32]} 38. g3 {[%clk 0:00:11]}  h5 {[%clk 0:01:31]} 39. h4 {[%clk 0:00:11]}  gxh4 {[%clk 0:01:27]} 40. gxh4 {[%clk 0:00:12]}  Bb7 {[%clk 0:01:24]} 41. Kg3 {[%clk 0:00:12]}  Bd5 {[%clk 0:01:21]} 42. Kf4 {[%clk 0:00:11]}  Be7 {[%clk 0:01:19]} 43. Kg3 {[%clk 0:00:11]}  Bf6 {[%clk 0:01:19]} 44. Bc7 {[%clk 0:00:09]}  e5 {[%clk 0:01:20]} 45. Bxb6 {[%clk 0:00:08]}  e4 {[%clk 0:01:20]} 46. Be2 {[%clk 0:00:09]}  Be5+ {[%clk 0:01:20]} 47. Kh3 {[%clk 0:00:07]}  Kg6 {[%clk 0:01:20]} 48. Bc5 {[%clk 0:00:06]}  Ba2 {[%clk 0:01:16]} 49. b6 {[%clk 0:00:06]}  Bb1 {[%clk 0:01:16]} 50. b7 {[%clk 0:00:06]}  d3 {[%clk 0:01:13]} 51. cxd3 {[%clk 0:00:04]}  exd3 {[%clk 0:01:14]} 52. Bd1 {[%clk 0:00:04]}  Bc2 {[%clk 0:01:12]} 53. Bf3 {[%clk 0:00:03]}  d2 {[%clk 0:01:12]} 54. Ba7 {[%clk 0:00:03]}  Bf5+ {[%clk 0:01:07]} 55. Kg2 {[%clk 0:00:02]}  Kf7 {[%clk 0:01:07]} 56. b8=Q {[%clk 0:00:02]}  Bxb8 {[%clk 0:01:07]} 57. Bxb8 {[%clk 0:00:03]}  Be4 {[%clk 0:01:07]} 58. Bxe4 {[%clk 0:00:02]}  d1=Q {[%clk 0:01:07]} 59. Bg3 {[%clk 0:00:02]}  Qe2+ {[%clk 0:01:05]} 60. Kh3 {[%clk 0:00:02]}  Qxe4 {[%clk 0:01:05]} 61. Kh2 {[%clk 0:00:02]}  Qg4 {[%clk 0:01:04]} 0-1


[Site "https://www.chess.com"]

[Event "Titled Tuesday Blitz March 01 Early 2022"]
[White "Aplommb"]
[Black "Kouskoutis, Georgios-Alexandros"]
[BlackFideId "4234049"]
[WhiteElo "2335"]
[BlackElo "2130"]
[Result "0-1"]
[Round "03"]
[TimeControl "180+1"]
[Date "2022.03.01"]
[WhiteClock "0:00:10"]
[BlackClock "0:00:07"]

1. d4 {[%clk 0:03:00]}  Nf6 {[%clk 0:02:59]} 2. c4 {[%clk 0:02:59]}  e6 {[%clk 0:02:58]} 3. Nc3 {[%clk 0:02:59]}  Bb4 {[%clk 0:02:58]} 4. Qc2 {[%clk 0:02:59]}  O-O {[%clk 0:02:57]} 5. e4 {[%clk 0:03:00]}  d6 {[%clk 0:02:55]} 6. Bd3 {[%clk 0:02:57]}  Nc6 {[%clk 0:02:53]} 7. Ne2 {[%clk 0:02:54]}  e5 {[%clk 0:02:51]} 8. d5 {[%clk 0:02:48]}  Ne7 {[%clk 0:01:52]} 9. O-O {[%clk 0:02:47]}  Ng6 {[%clk 0:01:38]} 10. a3 {[%clk 0:02:46]}  Bxc3 {[%clk 0:01:30]} 11. Qxc3 {[%clk 0:02:47]}  b6 {[%clk 0:01:23]} 12. b4 {[%clk 0:02:45]}  a5 {[%clk 0:01:23]} 13. Bd2 {[%clk 0:02:37]}  Nd7 {[%clk 0:00:52]} 14. Be3 {[%clk 0:02:32]}  Ba6 {[%clk 0:00:43]} 15. Rac1 {[%clk 0:02:20]}  Qe7 {[%clk 0:00:41]} 16. c5 {[%clk 0:01:42]}  axb4 {[%clk 0:00:40]} 17. axb4 {[%clk 0:01:42]}  bxc5 {[%clk 0:00:39]} 18. Bxa6 {[%clk 0:01:36]}  Rxa6 {[%clk 0:00:40]} 19. bxc5 {[%clk 0:01:36]}  h6 {[%clk 0:00:26]} 20. Ng3 {[%clk 0:01:24]}  Nh4 {[%clk 0:00:26]} 21. cxd6 {[%clk 0:01:10]}  cxd6 {[%clk 0:00:27]} 22. Qc7 {[%clk 0:01:10]}  Qd8 {[%clk 0:00:15]} 23. Qxd8 {[%clk 0:00:56]}  Rxd8 {[%clk 0:00:16]} 24. Rc7 {[%clk 0:00:56]}  Nf6 {[%clk 0:00:15]} 25. Rfc1 {[%clk 0:00:53]}  Ra4 {[%clk 0:00:09]} 26. f3 {[%clk 0:00:49]}  Ra2 {[%clk 0:00:10]} 27. Bf2 {[%clk 0:00:35]}  g5 {[%clk 0:00:10]} 28. Nf1 {[%clk 0:00:32]}  Ng6 {[%clk 0:00:09]} 29. g3 {[%clk 0:00:31]}  g4 {[%clk 0:00:08]} 30. Kg2 {[%clk 0:00:14]}  gxf3+ {[%clk 0:00:08]} 31. Kxf3 {[%clk 0:00:15]}  Ra3+ {[%clk 0:00:08]} 32. Ne3 {[%clk 0:00:15]}  h5 {[%clk 0:00:07]} 33. h3 {[%clk 0:00:15]}  h4 {[%clk 0:00:06]} 34. g4 {[%clk 0:00:15]}  Nf4 {[%clk 0:00:06]} 35. Bxh4 {[%clk 0:00:15]}  Rxe3+ {[%clk 0:00:04]} 36. Kxe3 {[%clk 0:00:15]}  Ng2+ {[%clk 0:00:05]} 37. Kf2 {[%clk 0:00:15]}  Nxh4 {[%clk 0:00:05]} 38. Rc8 {[%clk 0:00:15]}  Rxc8 {[%clk 0:00:05]} 39. Rxc8+ {[%clk 0:00:16]}  Kg7 {[%clk 0:00:06]} 40. Ke3 {[%clk 0:00:16]}  Ng2+ {[%clk 0:00:06]} 41. Kf3 {[%clk 0:00:14]}  Nf4 {[%clk 0:00:06]} 42. h4 {[%clk 0:00:14]}  Nd3 {[%clk 0:00:05]} 43. Rd8 {[%clk 0:00:14]}  Nc5 {[%clk 0:00:05]} 44. Rxd6 {[%clk 0:00:14]}  Nfxe4 {[%clk 0:00:06]} 45. Rc6 {[%clk 0:00:14]}  f6 {[%clk 0:00:04]} 46. d6 {[%clk 0:00:13]}  Kf7 {[%clk 0:00:05]} 47. d7 {[%clk 0:00:14]}  Ke7 {[%clk 0:00:06]} 48. g5 {[%clk 0:00:13]}  fxg5 {[%clk 0:00:05]} 49. h5 {[%clk 0:00:13]}  Kxd7 {[%clk 0:00:05]} 50. h6 {[%clk 0:00:12]}  g4+ {[%clk 0:00:06]} 51. Kg2 {[%clk 0:00:10]}  Kxc6 {[%clk 0:00:06]} 52. h7 {[%clk 0:00:11]}  Kd5 {[%clk 0:00:06]} 53. h8=Q {[%clk 0:00:11]}  g3 {[%clk 0:00:06]} 54. Qa8+ {[%clk 0:00:11]}  Kd4 {[%clk 0:00:06]} 55. Qd8+ {[%clk 0:00:12]}  Ke3 {[%clk 0:00:06]} 56. Qb6 {[%clk 0:00:12]}  Kf4 {[%clk 0:00:06]} 57. Qh6+ {[%clk 0:00:11]}  Kf5 {[%clk 0:00:06]} 58. Qh5+ {[%clk 0:00:11]}  Ke6 {[%clk 0:00:06]} 59. Qe8+ {[%clk 0:00:11]}  Kd5 {[%clk 0:00:07]} 60. Kf3 {[%clk 0:00:11]}  Kd4 {[%clk 0:00:05]} 61. Qd8+ {[%clk 0:00:10]}  Kc3 {[%clk 0:00:05]} 62. Qa5+ {[%clk 0:00:10]}  Kc4 {[%clk 0:00:06]} 63. Qc7 {[%clk 0:00:09]}  Kd3 {[%clk 0:00:03]} 64. Qxe5 {[%clk 0:00:08]}  Kd2 {[%clk 0:00:03]} 65. Qd5+ {[%clk 0:00:08]}  Kc2 {[%clk 0:00:04]} 66. Qd4 {[%clk 0:00:07]}  Kb3 {[%clk 0:00:03]} 67. Qg7 {[%clk 0:00:05]}  Kc4 {[%clk 0:00:03]} 68. Ke3 {[%clk 0:00:05]}  Kb5 {[%clk 0:00:03]} 69. Kd4 {[%clk 0:00:05]}  Ne6+ {[%clk 0:00:02]} 70. Kxe4 {[%clk 0:00:05]}  Nxg7 {[%clk 0:00:03]} 71. Kf3 {[%clk 0:00:06]}  Nf5 {[%clk 0:00:03]} 72. Kg2 {[%clk 0:00:06]}  Kc4 {[%clk 0:00:04]} 73. Kf3 {[%clk 0:00:07]}  Kd3 {[%clk 0:00:05]} 74. Kf4 {[%clk 0:00:07]}  Ke2 {[%clk 0:00:05]} 75. Kxf5 {[%clk 0:00:08]}  g2 {[%clk 0:00:06]} 76. Ke6 {[%clk 0:00:09]}  g1=Q {[%clk 0:00:07]} 77. Kd5 {[%clk 0:00:10]}  Kd3 {[%clk 0:00:07]} 0-1


[Site "https://www.chess.com"]

[Event "Titled Tuesday Blitz March 01 Early 2022"]
[White "Ardila, Oscar Humberto"]
[Black "Domingo Nunez, Alejandro"]
[WhiteFideId "4404742"]
[BlackFideId "22245561"]
[WhiteElo "1898"]
[BlackElo "2215"]
[Result "0-1"]
[Round "03"]
[TimeControl "180+1"]
[Date "2022.03.01"]
[WhiteClock "0:00:08"]
[BlackClock "0:00:38"]

1. d4 {[%clk 0:03:00]}  g6 {[%clk 0:02:58]} 2. e4 {[%clk 0:02:45]}  Bg7 {[%clk 0:02:58]} 3. Nf3 {[%clk 0:02:44]}  c6 {[%clk 0:02:57]} 4. Bd3 {[%clk 0:02:43]}  d5 {[%clk 0:02:56]} 5. e5 {[%clk 0:02:43]}  f6 {[%clk 0:02:55]} 6. O-O {[%clk 0:02:40]}  Nh6 {[%clk 0:02:54]} 7. Bxh6 {[%clk 0:02:37]}  Bxh6 {[%clk 0:02:54]} 8. exf6 {[%clk 0:02:38]}  exf6 {[%clk 0:02:55]} 9. Re1+ {[%clk 0:02:38]}  Kf7 {[%clk 0:02:55]} 10. c4 {[%clk 0:02:36]}  Re8 {[%clk 0:02:41]} 11. Rxe8 {[%clk 0:02:33]}  Qxe8 {[%clk 0:02:42]} 12. cxd5 {[%clk 0:02:33]}  cxd5 {[%clk 0:02:42]} 13. Nc3 {[%clk 0:02:33]}  Be6 {[%clk 0:02:39]} 14. Qb3 {[%clk 0:02:32]}  Qd7 {[%clk 0:02:35]} 15. Re1 {[%clk 0:02:31]}  Nc6 {[%clk 0:02:32]} 16. Na4 {[%clk 0:02:02]}  b6 {[%clk 0:02:16]} 17. Bb5 {[%clk 0:02:00]}  Qd6 {[%clk 0:02:16]} 18. Qc3 {[%clk 0:01:44]}  Ne7 {[%clk 0:02:13]} 19. Qd3 {[%clk 0:01:24]}  Rc8 {[%clk 0:01:57]} 20. a3 {[%clk 0:01:23]}  Bf5 {[%clk 0:01:54]} 21. Qb3 {[%clk 0:01:18]}  Bc2 {[%clk 0:01:47]} 22. Qa2 {[%clk 0:01:16]}  a6 {[%clk 0:01:41]} 23. Bxa6 {[%clk 0:01:16]}  Ra8 {[%clk 0:01:41]} 24. b3 {[%clk 0:00:50]}  Be4 {[%clk 0:01:34]} 25. Bb5 {[%clk 0:00:25]}  Rc8 {[%clk 0:01:26]} 26. Qe2 {[%clk 0:00:14]}  Rc2 {[%clk 0:01:25]} 27. Qd1 {[%clk 0:00:14]}  Qxa3 {[%clk 0:01:05]} 28. Bd3 {[%clk 0:00:13]}  Rc1 {[%clk 0:01:05]} 29. Qe2 {[%clk 0:00:12]}  Rxe1+ {[%clk 0:01:00]} 30. Nxe1 {[%clk 0:00:12]}  Qxb3 {[%clk 0:01:00]} 31. Bxe4 {[%clk 0:00:12]}  dxe4 {[%clk 0:01:00]} 32. Nb2 {[%clk 0:00:08]}  b5 {[%clk 0:00:54]} 33. d5 {[%clk 0:00:06]}  Qxd5 {[%clk 0:00:49]} 34. Nd1 {[%clk 0:00:06]}  f5 {[%clk 0:00:44]} 35. Nc3 {[%clk 0:00:06]}  Qc4 {[%clk 0:00:45]} 36. Qxc4+ {[%clk 0:00:04]}  bxc4 {[%clk 0:00:46]} 37. Kf1 {[%clk 0:00:04]}  Bd2 {[%clk 0:00:45]} 38. Ke2 {[%clk 0:00:03]}  Bxc3 {[%clk 0:00:45]} 39. Nc2 {[%clk 0:00:04]}  Nd5 {[%clk 0:00:45]} 40. f3 {[%clk 0:00:04]}  exf3+ {[%clk 0:00:45]} 41. Kxf3 {[%clk 0:00:04]}  Ke6 {[%clk 0:00:45]} 42. g4 {[%clk 0:00:04]}  fxg4+ {[%clk 0:00:45]} 43. Kxg4 {[%clk 0:00:04]}  Ke5 {[%clk 0:00:45]} 44. h4 {[%clk 0:00:04]}  Ke4 {[%clk 0:00:45]} 45. Kg5 {[%clk 0:00:04]}  Bd2+ {[%clk 0:00:44]} 46. Kg4 {[%clk 0:00:03]}  Ne3+ {[%clk 0:00:45]} 47. Nxe3 {[%clk 0:00:03]}  Bxe3 {[%clk 0:00:45]} 48. h5 {[%clk 0:00:04]}  gxh5+ {[%clk 0:00:45]} 49. Kxh5 {[%clk 0:00:04]}  c3 {[%clk 0:00:40]} 50. Kh4 {[%clk 0:00:05]}  c2 {[%clk 0:00:40]} 51. Kh5 {[%clk 0:00:06]}  c1=Q {[%clk 0:00:40]} 52. Kg4 {[%clk 0:00:07]}  Qg1+ {[%clk 0:00:39]} 53. Kh5 {[%clk 0:00:08]}  Qg5# {[%clk 0:00:38]} 0-1


[Site "https://www.chess.com"]

[Event "Titled Tuesday Blitz March 01 Early 2022"]
[White "Artemenko, Oleg"]
[Black "Bilan, Danila"]
[WhiteFideId "14201798"]
[BlackFideId "24161918"]
[WhiteElo "2287"]
[BlackElo "2164"]
[Result "0-1"]
[Round "03"]
[TimeControl "180+1"]
[Date "2022.03.01"]
[WhiteClock "0:00:19"]
[BlackClock "0:00:13"]

1. d4 {[%clk 0:03:00]}  d5 {[%clk 0:03:00]} 2. Nc3 {[%clk 0:03:00]}  Nf6 {[%clk 0:02:59]} 3. Bf4 {[%clk 0:03:00]}  a6 {[%clk 0:02:54]} 4. e3 {[%clk 0:03:00]}  Bf5 {[%clk 0:02:54]} 5. f3 {[%clk 0:03:00]}  Bg6 {[%clk 0:02:52]} 6. g4 {[%clk 0:03:00]}  e6 {[%clk 0:02:52]} 7. h4 {[%clk 0:03:00]}  h6 {[%clk 0:02:52]} 8. Bd3 {[%clk 0:03:00]}  Bxd3 {[%clk 0:02:51]} 9. Qxd3 {[%clk 0:03:01]}  Bd6 {[%clk 0:02:50]} 10. Nge2 {[%clk 0:03:01]}  Nc6 {[%clk 0:02:45]} 11. O-O-O {[%clk 0:03:01]}  Qd7 {[%clk 0:02:41]} 12. g5 {[%clk 0:02:59]}  Nh5 {[%clk 0:02:35]} 13. Bxd6 {[%clk 0:02:57]}  Qxd6 {[%clk 0:02:32]} 14. g6 {[%clk 0:02:58]}  f5 {[%clk 0:02:21]} 15. e4 {[%clk 0:02:57]}  Nf4 {[%clk 0:02:08]} 16. Qe3 {[%clk 0:02:18]}  Nxe2+ {[%clk 0:02:06]} 17. Nxe2 {[%clk 0:02:17]}  O-O-O {[%clk 0:02:00]} 18. e5 {[%clk 0:02:15]}  Qe7 {[%clk 0:01:55]} 19. Nf4 {[%clk 0:02:14]}  Rhe8 {[%clk 0:01:51]} 20. Nh5 {[%clk 0:02:10]}  Rd7 {[%clk 0:01:47]} 21. Kb1 {[%clk 0:02:06]}  Kb8 {[%clk 0:01:42]} 22. f4 {[%clk 0:01:56]}  Rc8 {[%clk 0:01:31]} 23. Rh3 {[%clk 0:01:56]}  Na5 {[%clk 0:01:31]} 24. Qa3 {[%clk 0:01:52]}  Qxa3 {[%clk 0:01:16]} 25. Rxa3 {[%clk 0:01:53]}  Nc4 {[%clk 0:01:15]} 26. Rad3 {[%clk 0:01:47]}  b6 {[%clk 0:01:12]} 27. b3 {[%clk 0:01:45]}  Na5 {[%clk 0:01:11]} 28. Kb2 {[%clk 0:01:39]}  c5 {[%clk 0:01:07]} 29. c3 {[%clk 0:01:39]}  Kc7 {[%clk 0:01:03]} 30. R3d2 {[%clk 0:01:26]}  Kd8 {[%clk 0:01:00]} 31. Rc1 {[%clk 0:01:21]}  Ke8 {[%clk 0:00:58]} 32. Ng3 {[%clk 0:01:12]}  Rdc7 {[%clk 0:00:53]} 33. Rcc2 {[%clk 0:01:10]}  Ke7 {[%clk 0:00:43]} 34. Nf1 {[%clk 0:01:04]}  Ke8 {[%clk 0:00:28]} 35. Ne3 {[%clk 0:01:03]}  Ke7 {[%clk 0:00:26]} 36. a4 {[%clk 0:00:58]}  Kd7 {[%clk 0:00:20]} 37. Ka2 {[%clk 0:00:50]}  Ke7 {[%clk 0:00:19]} 38. dxc5 {[%clk 0:00:26]}  bxc5 {[%clk 0:00:16]} 39. Nd1 {[%clk 0:00:23]}  Rb8 {[%clk 0:00:11]} 40. b4 {[%clk 0:00:23]}  Nc4 {[%clk 0:00:06]} 41. Rd3 {[%clk 0:00:23]}  cxb4 {[%clk 0:00:07]} 42. cxb4 {[%clk 0:00:23]}  Rxb4 {[%clk 0:00:07]} 43. Nc3 {[%clk 0:00:23]}  Rcb7 {[%clk 0:00:07]} 44. Ka1 {[%clk 0:00:23]}  a5 {[%clk 0:00:05]} 45. Rd1 {[%clk 0:00:22]}  Rb3 {[%clk 0:00:04]} 46. Rdc1 {[%clk 0:00:20]}  Ra3+ {[%clk 0:00:04]} 47. Ra2 {[%clk 0:00:20]}  Rab3 {[%clk 0:00:04]} 48. Nb5 {[%clk 0:00:19]}  Rb4 {[%clk 0:00:04]} 49. Rc3 {[%clk 0:00:18]}  Rb6 {[%clk 0:00:04]} 50. Rc1 {[%clk 0:00:17]}  Rb7 {[%clk 0:00:04]} 51. h5 {[%clk 0:00:18]}  Rb6 {[%clk 0:00:04]} 52. Na3 {[%clk 0:00:16]}  Nxa3 {[%clk 0:00:04]} 53. Rxa3 {[%clk 0:00:17]}  Rb3 {[%clk 0:00:04]} 54. Rxb3 {[%clk 0:00:17]}  Rxb3 {[%clk 0:00:05]} 55. Rc7+ {[%clk 0:00:17]}  Kf8 {[%clk 0:00:05]} 56. Rf7+ {[%clk 0:00:17]}  Kg8 {[%clk 0:00:06]} 57. Re7 {[%clk 0:00:17]}  Kf8 {[%clk 0:00:07]} 58. Rxe6 {[%clk 0:00:18]}  Ra3+ {[%clk 0:00:07]} 59. Kb2 {[%clk 0:00:18]}  Rxa4 {[%clk 0:00:08]} 60. Rd6 {[%clk 0:00:18]}  Rxf4 {[%clk 0:00:09]} 61. Rd8+ {[%clk 0:00:18]}  Ke7 {[%clk 0:00:09]} 62. Rg8 {[%clk 0:00:19]}  Rh4 {[%clk 0:00:09]} 63. Rxg7+ {[%clk 0:00:19]}  Ke6 {[%clk 0:00:09]} 64. Ra7 {[%clk 0:00:19]}  Rxh5 {[%clk 0:00:10]} 65. g7 {[%clk 0:00:19]}  Rg5 {[%clk 0:00:11]} 66. Kc3 {[%clk 0:00:18]}  Kxe5 {[%clk 0:00:11]} 67. Kd3 {[%clk 0:00:18]}  Kf6 {[%clk 0:00:11]} 68. Rxa5 {[%clk 0:00:16]}  Rxg7 {[%clk 0:00:12]} 69. Ra6+ {[%clk 0:00:16]}  Kg5 {[%clk 0:00:11]} 70. Kd4 {[%clk 0:00:17]}  Re7 {[%clk 0:00:12]} 71. Kxd5 {[%clk 0:00:16]}  h5 {[%clk 0:00:13]} 72. Ra8 {[%clk 0:00:16]}  h4 {[%clk 0:00:13]} 73. Rh8 {[%clk 0:00:16]}  Kg4 {[%clk 0:00:13]} 74. Kd4 {[%clk 0:00:17]}  f4 {[%clk 0:00:13]} 75. Kd3 {[%clk 0:00:18]}  f3 {[%clk 0:00:13]} 76. Rg8+ {[%clk 0:00:18]}  Kh3 {[%clk 0:00:13]} 77. Rg7 {[%clk 0:00:19]}  Rxg7 {[%clk 0:00:13]} 0-1


[Site "https://www.chess.com"]

[Event "Titled Tuesday Blitz March 01 Early 2022"]
[White "Balaji, Aaravamudhan"]
[Black "Krylov, Ivan"]
[WhiteFideId "436224"]
[BlackFideId "24128066"]
[WhiteElo "2085"]
[BlackElo "2258"]
[Result "1-0"]
[Round "03"]
[TimeControl "180+1"]
[Date "2022.03.01"]
[WhiteClock "0:00:46"]
[BlackClock "0:00:56"]

1. c4 {[%clk 0:03:00]}  e6 {[%clk 0:02:59]} 2. Nf3 {[%clk 0:03:00]}  d5 {[%clk 0:03:00]} 3. g3 {[%clk 0:03:00]}  Nf6 {[%clk 0:03:00]} 4. Bg2 {[%clk 0:03:01]}  Be7 {[%clk 0:02:59]} 5. O-O {[%clk 0:03:01]}  O-O {[%clk 0:02:59]} 6. b3 {[%clk 0:03:01]}  c6 {[%clk 0:02:56]} 7. Bb2 {[%clk 0:03:00]}  b6 {[%clk 0:02:55]} 8. d4 {[%clk 0:03:01]}  Bb7 {[%clk 0:02:55]} 9. Nbd2 {[%clk 0:03:01]}  Nbd7 {[%clk 0:02:53]} 10. Qc2 {[%clk 0:03:02]}  dxc4 {[%clk 0:02:52]} 11. Nxc4 {[%clk 0:03:01]}  c5 {[%clk 0:02:52]} 12. Rfd1 {[%clk 0:03:01]}  Qc7 {[%clk 0:02:52]} 13. Rac1 {[%clk 0:03:02]}  Rac8 {[%clk 0:02:51]} 14. Qb1 {[%clk 0:03:02]}  Qb8 {[%clk 0:02:50]} 15. Qa1 {[%clk 0:03:02]}  Rfd8 {[%clk 0:02:48]} 16. dxc5 {[%clk 0:02:41]}  Nxc5 {[%clk 0:02:48]} 17. Be5 {[%clk 0:02:38]}  Qa8 {[%clk 0:02:42]} 18. Nd6 {[%clk 0:02:37]}  Bxd6 {[%clk 0:02:39]} 19. Rxd6 {[%clk 0:02:38]}  Rxd6 {[%clk 0:02:37]} 20. Bxd6 {[%clk 0:02:39]}  Nce4 {[%clk 0:02:34]} 21. Be5 {[%clk 0:02:38]}  Ng4 {[%clk 0:02:24]} 22. Bxg7 {[%clk 0:02:35]}  Rxc1+ {[%clk 0:02:20]} 23. Qxc1 {[%clk 0:02:34]}  Kxg7 {[%clk 0:02:19]} 24. Qf4 {[%clk 0:02:28]}  Ngxf2 {[%clk 0:02:15]} 25. Ng5 {[%clk 0:02:12]}  Nxg5 {[%clk 0:02:11]} 26. Qxg5+ {[%clk 0:02:13]}  Kf8 {[%clk 0:02:09]} 27. Qh6+ {[%clk 0:02:09]}  Ke7 {[%clk 0:02:06]} 28. Qh4+ {[%clk 0:02:10]}  Ke8 {[%clk 0:02:00]} 29. Qa4+ {[%clk 0:02:06]}  Kf8 {[%clk 0:01:57]} 30. Qb4+ {[%clk 0:02:06]}  Ke8 {[%clk 0:01:54]} 31. Qb5+ {[%clk 0:02:03]}  Kf8 {[%clk 0:01:52]} 32. Bxb7 {[%clk 0:02:02]}  Qxb7 {[%clk 0:01:53]} 33. Kxf2 {[%clk 0:02:02]}  Ke7 {[%clk 0:01:48]} 34. Qg5+ {[%clk 0:02:01]}  Kd6 {[%clk 0:01:40]} 35. Qd8+ {[%clk 0:02:01]}  Ke5 {[%clk 0:01:35]} 36. Qh8+ {[%clk 0:01:38]}  f6 {[%clk 0:01:32]} 37. Qe8 {[%clk 0:01:28]}  Qc7 {[%clk 0:01:28]} 38. b4 {[%clk 0:01:08]}  a6 {[%clk 0:01:16]} 39. a3 {[%clk 0:01:03]}  b5 {[%clk 0:01:13]} 40. Qh5+ {[%clk 0:00:56]}  f5 {[%clk 0:01:11]} 41. Qh4 {[%clk 0:00:57]}  Qb6+ {[%clk 0:01:08]} 42. Kf1 {[%clk 0:00:52]}  Qb7 {[%clk 0:00:59]} 43. Kf2 {[%clk 0:00:45]}  Qb6+ {[%clk 0:00:59]} 44. e3 {[%clk 0:00:46]}  Qb7 {[%clk 0:00:56]} 45. Qd4# {[%clk 0:00:46]} 1-0


[Site "https://www.chess.com"]

[Event "Titled Tuesday Blitz March 01 Early 2022"]
[White "Barbashin, Igor"]
[Black "Martic, Ivan"]
[WhiteFideId "4155718"]
[BlackFideId "929301"]
[WhiteElo "2138"]
[BlackElo "2290"]
[Result "0-1"]
[Round "03"]
[TimeControl "180+1"]
[Date "2022.03.01"]
[WhiteClock "0:00:09"]
[BlackClock "0:01:24"]

1. d4 {[%clk 0:03:00]}  Nf6 {[%clk 0:02:33]} 2. c4 {[%clk 0:02:56]}  g6 {[%clk 0:02:33]} 3. Nf3 {[%clk 0:02:55]}  Bg7 {[%clk 0:02:32]} 4. g3 {[%clk 0:02:55]}  O-O {[%clk 0:02:32]} 5. Bg2 {[%clk 0:02:54]}  d6 {[%clk 0:02:33]} 6. O-O {[%clk 0:02:53]}  Nc6 {[%clk 0:02:33]} 7. Nc3 {[%clk 0:02:52]}  Rb8 {[%clk 0:02:33]} 8. b3 {[%clk 0:02:51]}  a6 {[%clk 0:02:31]} 9. a4 {[%clk 0:02:48]}  e5 {[%clk 0:02:27]} 10. e3 {[%clk 0:02:40]}  Bg4 {[%clk 0:02:25]} 11. h3 {[%clk 0:02:39]}  Bxf3 {[%clk 0:02:25]} 12. Bxf3 {[%clk 0:02:38]}  exd4 {[%clk 0:02:26]} 13. exd4 {[%clk 0:02:37]}  Nd7 {[%clk 0:02:26]} 14. Be3 {[%clk 0:02:34]}  Re8 {[%clk 0:02:25]} 15. Qd2 {[%clk 0:02:30]}  Ne7 {[%clk 0:02:17]} 16. Bg4 {[%clk 0:02:22]}  Nf6 {[%clk 0:02:16]} 17. Rfe1 {[%clk 0:02:12]}  h5 {[%clk 0:02:15]} 18. Bf3 {[%clk 0:02:11]}  Nf5 {[%clk 0:02:15]} 19. Bg5 {[%clk 0:02:07]}  Qd7 {[%clk 0:02:11]} 20. Rxe8+ {[%clk 0:01:46]}  Rxe8 {[%clk 0:02:09]} 21. Bxb7 {[%clk 0:01:38]}  Nxd4 {[%clk 0:02:02]} 22. Qxd4 {[%clk 0:01:34]}  Nh7 {[%clk 0:01:52]} 23. Qd5 {[%clk 0:01:24]}  Re5 {[%clk 0:01:44]} 24. Qd2 {[%clk 0:01:12]}  Nxg5 {[%clk 0:01:41]} 25. Bg2 {[%clk 0:01:08]}  Nxh3+ {[%clk 0:01:39]} 26. Bxh3 {[%clk 0:01:08]}  Qxh3 {[%clk 0:01:37]} 27. Re1 {[%clk 0:00:59]}  h4 {[%clk 0:01:37]} 28. Rxe5 {[%clk 0:00:37]}  Bxe5 {[%clk 0:01:38]} 29. Ne4 {[%clk 0:00:36]}  hxg3 {[%clk 0:01:37]} 30. fxg3 {[%clk 0:00:37]}  Bxg3 {[%clk 0:01:37]} 31. Qg2 {[%clk 0:00:24]}  Qxg2+ {[%clk 0:01:36]} 32. Kxg2 {[%clk 0:00:23]}  Be5 {[%clk 0:01:36]} 33. c5 {[%clk 0:00:20]}  Kf8 {[%clk 0:01:33]} 34. b4 {[%clk 0:00:19]}  Ke7 {[%clk 0:01:31]} 35. b5 {[%clk 0:00:19]}  axb5 {[%clk 0:01:31]} 36. a5 {[%clk 0:00:19]}  Kd7 {[%clk 0:01:28]} 37. a6 {[%clk 0:00:18]}  Kc6 {[%clk 0:01:25]} 38. cxd6 {[%clk 0:00:13]}  cxd6 {[%clk 0:01:26]} 39. Ng5 {[%clk 0:00:10]}  f6 {[%clk 0:01:24]} 40. Nf3 {[%clk 0:00:09]}  Kb6 {[%clk 0:01:24]} 0-1


[Site "https://www.chess.com"]